fUSD/lending_fUSD_20250515
["ID","MTS","AMOUNT","RATE_DAILY","PERIOD"]
[361160132,1747312285325,-400.0,0.00014146,2]
[361160133,1747312285335,-400.0,0.00014146,2]
[361160134,1747312285345,-400.0,0.00014146,2]
[361160135,1747312285358,-423.63,0.00014146,2]
[361160136,1747312285368,-535.8,0.00014146,2]
[361160137,1747312285383,-1990.2,0.00014146,2]
[361160138,1747312285393,-566.87,0.00014146,2]
[361160139,1747312285403,-725.22970311,0.00014164,2]
[361160140,1747312285413,-400.0,0.00014179,2]
[361160141,1747312285423,-572.39,0.00014179,2]
[361160142,1747312285433,-400.0,0.00014179,2]
[361160143,1747312285443,-400.0,0.00014179,2]
[361160144,1747312285451,-400.0,0.00014179,2]
[361160145,1747312285459,-475.17,0.00014179,2]
[361160146,1747312285470,-400.0,0.00014179,2]
[361160147,1747312285479,-427.86,0.00014179,2]
[361160148,1747312285486,-531.85,0.00014179,2]
[361160149,1747312285497,-400.0,0.00014179,2]
[361160150,1747312285509,-472.87,0.00014179,2]
[361160151,1747312285519,-800.26,0.00014179,2]
[361160152,1747312285529,-400.0,0.00014179,2]
[361160153,1747312285540,-527.61,0.00014179,2]
[361160154,1747312285556,-938.56,0.00014179,2]
[361160155,1747312285567,-400.0,0.00014179,2]
[361160156,1747312285577,-542.45,0.00014179,2]
[361160157,1747312285588,-448.35,0.00014179,2]
[361160158,1747312285598,-515.02,0.00014179,2]
[361160159,1747312285613,-920.05,0.00014179,2]
[361160160,1747312285624,-619.27,0.00014179,2]
[361160161,1747312285635,-546.2,0.00014179,2]
[361160162,1747312285645,-400.0,0.00014179,2]
[361160163,1747312285655,-400.0,0.00014179,2]
[361160164,1747312285665,-400.87,0.00014179,2]
[361160165,1747312285675,-400.0,0.00014179,2]
[361160166,1747312285685,-457.69,0.00014179,2]
[361160167,1747312285695,-400.0,0.00014179,2]
[361160168,1747312285705,-704.72,0.00014179,2]
[361160169,1747312285714,-450.0,0.00014179,2]
[361160170,1747312285725,-640.67,0.00014179,2]
[361160171,1747312285735,-463.55,0.00014179,2]
[361160172,1747312285745,-475.16,0.00014179,2]
[361160173,1747312285755,-647.93,0.00014179,2]
[361160174,1747312285765,-493.97,0.00014179,2]
[361160175,1747312285775,-408.34,0.00014179,2]
[361160176,1747312285785,-400.0,0.00014179,2]
[361160177,1747312285794,-930.04,0.00014179,2]
[361160178,1747312285805,-584.59,0.00014179,2]
[361160179,1747312285815,-508.74,0.00014179,2]
[361160180,1747312285826,-400.0,0.00014179,2]
[361160181,1747312285836,-562.67,0.00014179,2]
[361160182,1747312285846,-587.33,0.00014179,2]
[361160183,1747312285860,-2186.73,0.00014179,2]
[361160184,1747312285870,-480.35,0.00014179,2]
[361160185,1747312285880,-163.54,0.0001418,2]
[361160186,1747312285890,-150.0,0.00014199,2]
[361160187,1747312285901,-2201.64854251,0.0001421,7]
[361160188,1747312285911,-1000.0,0.00014247,2]
[361160189,1747312285921,-1000.0,0.00014247,2]
[361160190,1747312285931,-1000.0,0.00014247,2]
[361160191,1747312285942,-771.3323445,0.00014247,2]
[361160192,1747312285952,-1000.0,0.00014247,2]
[361160193,1747312285962,-1000.0,0.00014247,2]
[361160194,1747312285972,-608.7265268,0.00014247,2]
[361160195,1747312285982,-1000.0,0.00014247,2]
[361160196,1747312285993,-1000.0,0.00014247,2]
[361160197,1747312286003,-1000.0,0.00014247,2]
[361160198,1747312286013,-1000.0,0.00014247,2]
[361160199,1747312286024,-1000.0,0.00014247,2]
[361160200,1747312286034,-1000.0,0.00014247,2]
[361160201,1747312286045,-1000.0,0.00014247,2]
[361160202,1747312286056,-501.73425349,0.00014247,2]
[361160203,1747312286067,-1000.0,0.00014247,2]
[361160204,1747312286080,-509.36684504,0.00014247,2]
[361160205,1747312286091,-1000.0,0.00014247,2]
[361160206,1747312286101,-1000.0,0.00014247,2]
[361160207,1747312286115,-1019.91725645,0.00014247,2]
[361160208,1747312286125,-504.7913576,0.00014247,2]
[361160209,1747312286135,-152.49082522,0.00014247,2]
[361160210,1747312286144,-1000.0,0.00014247,2]
[361160211,1747312286155,-1000.0,0.00014247,2]
[361160212,1747312286165,-1000.274438,0.00014247,2]
[361160213,1747312286175,-1000.0,0.00014247,2]
[361160214,1747312286186,-771.84365913,0.00014247,2]
[361160215,1747312286196,-1000.0,0.00014247,2]
[361160216,1747312286205,-1000.0,0.00014247,2]
[361160217,1747312286216,-1000.0,0.00014247,2]
[361160218,1747312286227,-1000.0,0.00014247,2]
[361160219,1747312286236,-1000.0,0.00014247,2]
[361160220,1747312286246,-507.10691133,0.00014247,2]
[361160221,1747312286257,-1000.0,0.00014247,2]
[361160222,1747312286267,-1000.0,0.00014247,2]
[361160223,1747312286277,-1000.0,0.00014247,2]
[361160224,1747312286288,-167.7,0.00014287,2]
[361160225,1747312286299,-400.0,0.00014287,2]
[361160226,1747312286310,-469.89,0.00014334,2]
[361160227,1747312286321,-499.13,0.00014334,2]
[361160228,1747312286332,-2415.52,0.00014334,2]
[361160229,1747312286343,-2561.98,0.00014334,2]
[361160230,1747312286353,-400.0,0.00014335,2]
[361160231,1747312286367,-483.79,0.00014335,2]
[361160232,1747312286377,-709.94,0.00014335,2]
[361160233,1747312286387,-400.0,0.00014335,2]
[361160234,1747312286397,-494.81,0.00014335,2]
[361160235,1747312286407,-481.22,0.00014335,2]
[361160236,1747312286418,-400.0,0.00014335,2]
[361160237,1747312286428,-419.11,0.00014335,2]
[361160238,1747312286438,-624.18,0.00014335,2]
[361160239,1747312286449,-400.0,0.00014335,2]
[361160240,1747312286460,-620.77,0.00014335,2]
[361160241,1747312286471,-400.0,0.00014335,2]
[361160242,1747312286482,-400.0,0.00014335,2]
[361160243,1747312286493,-440.9,0.00014335,2]
[361160244,1747312286505,-1038.52,0.00014335,2]
[361160245,1747312286516,-881.03,0.00014335,2]
[361160246,1747312286526,-501.16,0.00014335,2]
[361160247,1747312286536,-1344.14,0.00014335,2]
[361160248,1747312286547,-451.75,0.00014335,2]
[361160249,1747312286559,-400.0,0.00014335,2]
[361160250,1747312286569,-612.11,0.00014335,2]
[361160251,1747312286579,-462.96,0.00014335,2]
[361160252,1747312286589,-477.75,0.00014335,2]
[361160253,1747312286599,-381.33,0.00014335,2]
[361160254,1747312286614,-400.0,0.00014335,2]
[361160255,1747312286624,-439.58,0.00014335,2]
[361160256,1747312286635,-400.0,0.00014335,2]
[361160257,1747312286645,-576.82,0.00014335,2]
[361160258,1747312286656,-413.48,0.00014335,2]
[361160259,1747312286667,-546.12,0.00014335,2]
[361160260,1747312286678,-416.69,0.00014335,2]
[361160261,1747312286689,-505.41,0.00014335,2]
[361160262,1747312286699,-400.0,0.00014335,2]
[361160263,1747312286710,-400.0,0.00014335,2]
[361160264,1747312286720,-465.84,0.00014335,2]
[361160265,1747312286730,-400.0,0.00014335,2]
[361160266,1747312286741,-1045.24,0.00014335,2]
[361160267,1747312286752,-472.83,0.00014335,2]
[361160268,1747312286763,-400.0,0.00014335,2]
[361160269,1747312286773,-699.13,0.00014335,2]
[361160270,1747312286785,-999.87,0.00014335,2]
[361160271,1747312286796,-1258.7,0.00014335,2]
[361160272,1747312286807,-400.0,0.00014335,2]
[361160273,1747312286818,-563.34,0.00014335,2]
[361160274,1747312286828,-871.71,0.00014335,2]
[361160275,1747312286838,-522.13,0.00014335,2]
[361160276,1747312286849,-569.36,0.00014335,2]
[361160277,1747312286864,-467.55,0.00014335,2]
[361160278,1747312286875,-558.97,0.00014335,2]
[361160279,1747312286886,-995.06,0.00014335,2]
[361160280,1747312286897,-2978.01,0.00014335,2]
[361160281,1747312286908,-961.53,0.00014335,2]
[361160282,1747312286919,-814.79,0.00014335,2]
[361160283,1747312286931,-1150.65,0.00014335,2]
[361160284,1747312286942,-953.55,0.00014335,2]
[361160285,1747312286952,-945.18,0.00014335,2]
[361160286,1747312286963,-605.88,0.00014335,2]
[361160287,1747312286973,-400.0,0.00014335,2]
[361160288,1747312286984,-793.37,0.00014335,2]
[361160289,1747312286995,-400.0,0.00014335,2]
[361160290,1747312287005,-400.0,0.00014335,2]
[361160291,1747312287016,-268.81379247,0.00014335,2]
[361160292,1747312287027,-565.3,0.00014335,2]
[361160293,1747312287038,-3659.41,0.00014335,2]
[361160294,1747312287048,-400.0,0.00014335,2]
[361160295,1747312287059,-400.0,0.00014335,2]
[361160296,1747312287070,-586.1,0.00014335,2]
[361160297,1747312287081,-866.92,0.00014335,2]
[361160298,1747312287091,-1133.62,0.00014335,2]
[361160299,1747312287101,-400.0,0.00014335,2]
[361160300,1747312287114,-400.0,0.00014335,2]
[361160301,1747312287125,-896.17,0.00014335,2]
[361160302,1747312287135,-3422.62,0.00014335,2]
[361160303,1747312287146,-400.0,0.00014335,2]
[361160304,1747312287157,-400.0,0.00014335,2]
[361160305,1747312287167,-1508.16,0.00014335,2]
[361160306,1747312287177,-415.84103222,0.00014335,2]
[361160307,1747312287187,-400.0,0.00014335,2]
[361160308,1747312287198,-2309.39,0.00014335,2]
[361160309,1747312287208,-546.0,0.00014335,2]
[361160310,1747312287219,-521.69,0.00014335,2]
[361160311,1747312287229,-982.05,0.00014335,2]
[361160312,1747312287239,-499.46,0.00014335,2]
[361160313,1747312287249,-400.0,0.00014335,2]
[361160314,1747312287259,-2191.97,0.00014335,2]
[361160315,1747312287270,-957.61,0.00014335,2]
[361160316,1747312287280,-722.35,0.00014335,2]
[361160317,1747312287290,-400.0,0.00014335,2]
[361160318,1747312287301,-2080.12,0.00014335,2]
[361160319,1747312287311,-668.17,0.00014335,2]
[361160320,1747312287321,-400.0,0.00014335,2]
[361160321,1747312287331,-400.0,0.00014335,2]
[361160322,1747312287342,-400.0,0.00014335,2]
[361160323,1747312287352,-1597.82,0.00014335,2]
[361160324,1747312287367,-1630.72,0.00014335,2]
[361160325,1747312287378,-400.0,0.00014335,2]
[361160326,1747312287388,-3843.82,0.00014335,2]
[361160327,1747312287398,-598.25,0.00014335,2]
[361160328,1747312287408,-1950.93,0.00014335,2]
[361160329,1747312287418,-457.12,0.00014335,2]
[361160330,1747312287429,-922.32,0.00014335,2]
[361160331,1747312287439,-10611.15,0.00014335,2]
[361160332,1747312287449,-400.0,0.00014335,2]
[361160333,1747312287459,-400.0,0.00014335,2]
[361160334,1747312287470,-1108.85,0.00014335,2]
[361160335,1747312287480,-501.52,0.00014335,2]
[361160336,1747312287490,-541.7,0.00014335,2]
[361160337,1747312287504,-601.85,0.00014335,2]
[361160338,1747312287515,-589.76,0.00014335,2]
[361160339,1747312287526,-29073.02,0.00014335,2]
[361160340,1747312287536,-622.13,0.00014335,2]
[361160341,1747312287547,-400.0,0.00014335,2]
[361160342,1747312287558,-3250.93,0.00014335,2]
[361160343,1747312287569,-676.29,0.00014335,2]
[361160344,1747312287583,-530.87,0.00014335,2]
[361160345,1747312287604,-2267.04,0.00014335,2]
[361160346,1747312287620,-420.88,0.00014335,2]
[361160347,1747312287630,-796.59,0.00014335,2]
[361160348,1747312287641,-419.55,0.00014336,2]
[361160349,1747312287651,-400.0,0.00014336,2]
[361160350,1747312287662,-400.0,0.00014336,2]
[361160351,1747312287673,-448.46,0.00014336,2]
[361160352,1747312287683,-400.0,0.00014336,2]
[361160353,1747312287693,-400.0,0.00014336,2]
[361160354,1747312287704,-400.0,0.00014336,2]
[361160355,1747312287715,-400.0,0.00014336,2]
[361160356,1747312287964,-400.0,0.00014336,2]
[361160357,1747312287975,-572.49,0.00014336,2]
[361160358,1747312287985,-400.0,0.00014336,2]
[361160359,1747312287995,-455.44,0.00014336,2]
[361160360,1747312288004,-545.88,0.00014336,2]
[361160361,1747312288015,-400.0,0.00014336,2]
[361160362,1747312288025,-613.99,0.00014336,2]
[361160363,1747312288035,-400.0,0.00014336,2]
[361160364,1747312288045,-559.8,0.00014336,2]
[361160365,1747312288055,-7018.63,0.00014336,2]
[361160366,1747312288066,-472.72,0.00014336,2]
[361160367,1747312288076,-1647.57,0.00014336,2]
[361160368,1747312288087,-400.0,0.00014336,2]
[361160369,1747312288096,-400.0,0.00014336,2]
[361160370,1747312288106,-582.36,0.00014336,2]
[361160371,1747312288119,-400.0,0.00014336,2]
[361160372,1747312288129,-1273.86,0.00014336,2]
[361160373,1747312288139,-707.6,0.00014336,2]
[361160374,1747312288149,-400.0,0.00014336,2]
[361160375,1747312288159,-847.58,0.00014336,2]
[361160376,1747312288169,-532.14,0.00014336,2]
[361160377,1747312288179,-504.34,0.00014336,2]
[361160378,1747312288189,-539.45,0.00014336,2]
[361160379,1747312288198,-400.0,0.00014336,2]
[361160380,1747312288208,-400.0,0.00014336,2]
[361160381,1747312288219,-672.34,0.00014336,2]
[361160382,1747312288228,-9977.50463014,0.0001439,2]
[361160383,1747312288238,-826.96,0.0001442,2]
[361160384,1747312288248,-400.0,0.0001442,2]
[361160385,1747312288259,-400.0,0.0001442,2]
[361160386,1747312288269,-1048.33,0.0001442,2]
[361160387,1747312288279,-400.0,0.0001442,2]
[361160388,1747312288290,-400.0,0.0001442,2]
[361160389,1747312288299,-400.0,0.0001442,2]
[361160390,1747312288310,-423.63,0.0001442,2]
[361160391,1747312288320,-535.8,0.0001442,2]
[361160392,1747312288330,-1990.2,0.0001442,2]
[361160393,1747312288340,-566.87,0.0001442,2]
[361160394,1747312288350,-400.0,0.00014453,2]
[361160395,1747312288365,-572.39,0.00014453,2]
[361160396,1747312288375,-400.0,0.00014453,2]
[361160397,1747312288385,-400.0,0.00014453,2]
[361160398,1747312288395,-400.0,0.00014453,2]
[361160399,1747312288405,-475.17,0.00014453,2]
[361160400,1747312288415,-400.0,0.00014453,2]
[361160401,1747312288425,-427.86,0.00014453,2]
[361160402,1747312288435,-531.85,0.00014453,2]
[361160403,1747312288446,-400.0,0.00014453,2]
[361160404,1747312288457,-472.87,0.00014453,2]
[361160405,1747312288468,-800.26,0.00014453,2]
[361160406,1747312288481,-400.0,0.00014453,2]
[361160407,1747312288490,-527.61,0.00014453,2]
[361160408,1747312288500,-938.56,0.00014453,2]
[361160409,1747312288512,-400.0,0.00014453,2]
[361160410,1747312288522,-542.45,0.00014453,2]
[361160411,1747312288532,-448.35,0.00014453,2]
[361160412,1747312288543,-515.02,0.00014453,2]
[361160413,1747312288554,-920.05,0.00014453,2]
[361160414,1747312288563,-619.27,0.00014453,2]
[361160415,1747312288574,-546.2,0.00014453,2]
[361160416,1747312288583,-400.0,0.00014453,2]
[361160417,1747312288594,-400.0,0.00014453,2]
[361160418,1747312288604,-400.87,0.00014453,2]
[361160419,1747312288619,-400.0,0.00014453,2]
[361160420,1747312288628,-457.69,0.00014453,2]
[361160421,1747312288639,-400.0,0.00014453,2]
[361160422,1747312288648,-704.72,0.00014453,2]
[361160423,1747312288658,-450.0,0.00014453,2]
[361160424,1747312288668,-640.67,0.00014453,2]
[361160425,1747312288678,-463.55,0.00014453,2]
[361160426,1747312288688,-475.16,0.00014453,2]
[361160427,1747312288697,-647.93,0.00014453,2]
[361160428,1747312288707,-493.97,0.00014453,2]
[361160429,1747312288716,-408.34,0.00014453,2]
[361160430,1747312288726,-467.61373085,0.00014453,2]
[361160431,1747312288736,-930.04,0.00014453,2]
[361160432,1747312288746,-584.59,0.00014453,2]
[361160433,1747312288756,-508.74,0.00014453,2]
[361160434,1747312288766,-400.0,0.00014453,2]
[361160435,1747312288776,-562.67,0.00014453,2]
[361160436,1747312288785,-587.33,0.00014453,2]
[361160437,1747312288795,-2186.73,0.00014453,2]
[361160438,1747312288806,-480.35,0.00014453,2]
[361160439,1747312288815,-436.25765087,0.00014466,2]
[361160440,1747312288825,-400.0,0.00014561,2]
[361160441,1747312288835,-441.52,0.0001459,2]
[361160442,1747312288844,-469.89,0.00014608,2]
[361160443,1747312288862,-499.13,0.00014608,2]
[361160444,1747312288871,-2415.52,0.00014608,2]
[361160445,1747312288881,-2561.98,0.00014608,2]
[361160446,1747312288890,-400.0,0.00014609,2]
[361160447,1747312288900,-483.79,0.00014609,2]
[361160448,1747312288909,-709.94,0.00014609,2]
[361160449,1747312288919,-400.0,0.00014609,2]
[361160450,1747312288928,-494.81,0.00014609,2]
[361160451,1747312288938,-481.22,0.00014609,2]
[361160452,1747312288947,-400.0,0.00014609,2]
[361160453,1747312288957,-419.11,0.00014609,2]
[361160454,1747312288968,-624.18,0.00014609,2]
[361160455,1747312288978,-400.0,0.00014609,2]
[361160456,1747312288988,-620.77,0.00014609,2]
[361160457,1747312288997,-400.0,0.00014609,2]
[361160458,1747312289007,-252.14427944,0.00014609,2]
[361160459,1747312289016,-440.9,0.00014609,2]
[361160460,1747312289026,-1038.52,0.00014609,2]
[361160461,1747312289036,-881.03,0.00014609,2]
[361160462,1747312289045,-501.16,0.00014609,2]
[361160463,1747312289055,-1344.14,0.00014609,2]
[361160464,1747312289065,-451.75,0.00014609,2]
[361160465,1747312289075,-400.0,0.00014609,2]
[361160466,1747312289084,-612.11,0.00014609,2]
[361160467,1747312289093,-462.96,0.00014609,2]
[361160468,1747312289103,-477.75,0.00014609,2]
[361160469,1747312289117,-400.0,0.00014609,2]
[361160470,1747312289127,-439.58,0.00014609,2]
[361160471,1747312289136,-400.0,0.00014609,2]
[361160472,1747312289146,-576.82,0.00014609,2]
[361160473,1747312289156,-413.48,0.00014609,2]
[361160474,1747312289166,-546.12,0.00014609,2]
[361160475,1747312289175,-416.69,0.00014609,2]
[361160476,1747312289185,-505.41,0.00014609,2]
[361160477,1747312289195,-400.0,0.00014609,2]
[361160478,1747312289204,-400.0,0.00014609,2]
[361160479,1747312289214,-465.84,0.00014609,2]
[361160480,1747312289224,-382.26988258,0.00014609,2]
[361160481,1747312289234,-1045.24,0.00014609,2]
[361160482,1747312289244,-472.83,0.00014609,2]
[361160483,1747312289256,-400.0,0.00014609,2]
[361160484,1747312289266,-699.13,0.00014609,2]
[361160485,1747312289275,-999.87,0.00014609,2]
[361160486,1747312289285,-1258.7,0.00014609,2]
[361160487,1747312289296,-400.0,0.00014609,2]
[361160488,1747312289306,-563.34,0.00014609,2]
[361160489,1747312289316,-871.71,0.00014609,2]
[361160490,1747312289326,-522.13,0.00014609,2]
[361160491,1747312289336,-569.36,0.00014609,2]
[361160492,1747312289345,-467.55,0.00014609,2]
[361160493,1747312289355,-558.97,0.00014609,2]
[361160494,1747312289369,-995.06,0.00014609,2]
[361160495,1747312289379,-2978.01,0.00014609,2]
[361160496,1747312289388,-961.53,0.00014609,2]
[361160497,1747312289398,-814.79,0.00014609,2]
[361160498,1747312289409,-1150.65,0.00014609,2]
[361160499,1747312289419,-953.55,0.00014609,2]
[361160500,1747312289428,-945.18,0.00014609,2]
[361160501,1747312289438,-605.88,0.00014609,2]
[361160502,1747312289448,-400.0,0.00014609,2]
[361160503,1747312289458,-793.37,0.00014609,2]
[361160504,1747312289477,-400.0,0.00014609,2]
[361160505,1747312289490,-400.0,0.00014609,2]
[361160506,1747312289501,-565.3,0.00014609,2]
[361160507,1747312289512,-3659.41,0.00014609,2]
[361160508,1747312289522,-400.0,0.00014609,2]
[361160509,1747312289533,-400.0,0.00014609,2]
[361160510,1747312289544,-586.1,0.00014609,2]
[361160511,1747312289556,-866.92,0.00014609,2]
[361160512,1747312289567,-1133.62,0.00014609,2]
[361160513,1747312289577,-400.0,0.00014609,2]
[361160514,1747312289588,-455.37,0.00014609,2]
[361160515,1747312289599,-896.17,0.00014609,2]
[361160516,1747312289612,-3422.62,0.00014609,2]
[361160517,1747312289622,-400.0,0.00014609,2]
[361160518,1747312289632,-400.0,0.00014609,2]
[361160519,1747312289642,-1508.16,0.00014609,2]
[361160520,1747312289652,-400.0,0.00014609,2]
[361160521,1747312289662,-2309.39,0.00014609,2]
[361160522,1747312289673,-546.0,0.00014609,2]
[361160523,1747312289683,-521.69,0.00014609,2]
[361160524,1747312289693,-982.05,0.00014609,2]
[361160525,1747312289706,-499.46,0.00014609,2]
[361160526,1747312289716,-400.0,0.00014609,2]
[361160527,1747312289726,-2191.97,0.00014609,2]
[361160528,1747312289737,-957.61,0.00014609,2]
[361160529,1747312289747,-722.35,0.00014609,2]
[361160530,1747312289758,-400.0,0.00014609,2]
[361160531,1747312289769,-2080.12,0.00014609,2]
[361160532,1747312289779,-668.17,0.00014609,2]
[361160533,1747312289790,-400.0,0.00014609,2]
[361160534,1747312289800,-400.0,0.00014609,2]
[361160535,1747312289810,-400.0,0.00014609,2]
[361160536,1747312289820,-1597.82,0.00014609,2]
[361160537,1747312289830,-1630.72,0.00014609,2]
[361160538,1747312289841,-400.0,0.00014609,2]
[361160539,1747312289851,-3843.82,0.00014609,2]
[361160540,1747312289867,-598.25,0.00014609,2]
[361160541,1747312289878,-1950.93,0.00014609,2]
[361160542,1747312289889,-457.12,0.00014609,2]
[361160543,1747312289899,-922.32,0.00014609,2]
[361160544,1747312289909,-10611.15,0.00014609,2]
[361160545,1747312289919,-400.0,0.00014609,2]
[361160546,1747312289930,-400.0,0.00014609,2]
[361160547,1747312289940,-1108.85,0.00014609,2]
[361160548,1747312289950,-501.52,0.00014609,2]
[361160549,1747312289961,-541.7,0.00014609,2]
[361160550,1747312289971,-601.85,0.00014609,2]
[361160551,1747312289982,-589.76,0.00014609,2]
[361160552,1747312289992,-29073.02,0.00014609,2]
[361160553,1747312290003,-622.13,0.00014609,2]
[361160554,1747312290013,-400.0,0.00014609,2]
[361160555,1747312290024,-3250.93,0.00014609,2]
[361160556,1747312290034,-676.29,0.00014609,2]
[361160557,1747312290044,-530.87,0.00014609,2]
[361160558,1747312290054,-2267.04,0.00014609,2]
[361160559,1747312290064,-420.88,0.00014609,2]
[361160560,1747312290074,-796.59,0.00014609,2]
[361160561,1747312290084,-419.55,0.0001461,2]
[361160562,1747312290094,-400.0,0.0001461,2]
[361160563,1747312290104,-400.0,0.0001461,2]
[361160564,1747312290118,-448.46,0.0001461,2]
[361160565,1747312290128,-400.0,0.0001461,2]
[361160566,1747312290138,-400.0,0.0001461,2]
[361160567,1747312290148,-400.0,0.0001461,2]
[361160568,1747312290158,-400.0,0.0001461,2]
[361160569,1747312290168,-400.0,0.0001461,2]
[361160570,1747312290178,-572.49,0.0001461,2]
[361160571,1747312290188,-400.0,0.0001461,2]
[361160572,1747312290197,-455.44,0.0001461,2]
[361160573,1747312290207,-545.88,0.0001461,2]
[361160574,1747312290217,-400.0,0.0001461,2]
[361160575,1747312290227,-613.99,0.0001461,2]
[361160576,1747312290237,-400.0,0.0001461,2]
[361160577,1747312290247,-559.8,0.0001461,2]
[361160578,1747312290258,-7018.63,0.0001461,2]
[361160579,1747312290268,-472.72,0.0001461,2]
[361160580,1747312290278,-1647.57,0.0001461,2]
[361160581,1747312290288,-247.66787052,0.0001461,2]
[361160582,1747312290298,-400.0,0.0001461,2]
[361160583,1747312290308,-582.36,0.0001461,2]
[361160584,1747312290318,-400.0,0.0001461,2]
[361160585,1747312290328,-1273.86,0.0001461,2]
[361160586,1747312290338,-707.6,0.0001461,2]
[361160587,1747312290348,-400.0,0.0001461,2]
[361160588,1747312290362,-847.58,0.0001461,2]
[361160589,1747312290372,-532.14,0.0001461,2]
[361160590,1747312290382,-504.34,0.0001461,2]
[361160591,1747312290392,-539.45,0.0001461,2]
[361160592,1747312290485,-400.0,0.0001461,2]
[361160593,1747312290496,-400.0,0.0001461,2]
[361160594,1747312290505,-672.34,0.0001461,2]
[361160595,1747312290514,-826.96,0.00014694,2]
[361160596,1747312290524,-400.0,0.00014694,2]
[361160597,1747312290534,-400.0,0.00014694,2]
[361160598,1747312290543,-1048.33,0.00014694,2]
[361160599,1747312290554,-400.0,0.00014694,2]
[361160600,1747312290564,-400.0,0.00014694,2]
[361160601,1747312290574,-400.0,0.00014694,2]
[361160602,1747312290583,-423.63,0.00014694,2]
[361160603,1747312290593,-535.8,0.00014694,2]
[361160604,1747312290603,-1990.2,0.00014694,2]
[361160605,1747312290617,-566.87,0.00014694,2]
[361160606,1747312290626,-400.0,0.00014727,2]
[361160607,1747312290636,-572.39,0.00014727,2]
[361160608,1747312290646,-400.0,0.00014727,2]
[361160609,1747312290655,-400.0,0.00014727,2]
[361160610,1747312290666,-400.0,0.00014727,2]
[361160611,1747312290675,-475.17,0.00014727,2]
[361160612,1747312290685,-400.0,0.00014727,2]
[361160613,1747312290695,-427.86,0.00014727,2]
[361160614,1747312290705,-531.85,0.00014727,2]
[361160615,1747312290714,-400.0,0.00014727,2]
[361160616,1747312290724,-472.87,0.00014727,2]
[361160617,1747312290734,-800.26,0.00014727,2]
[361160618,1747312290744,-400.0,0.00014727,2]
[361160619,1747312290753,-527.61,0.00014727,2]
[361160620,1747312290763,-938.56,0.00014727,2]
[361160621,1747312290772,-400.0,0.00014727,2]
[361160622,1747312290782,-542.45,0.00014727,2]
[361160623,1747312290792,-448.35,0.00014727,2]
[361160624,1747312290801,-515.02,0.00014727,2]
[361160625,1747312290811,-920.05,0.00014727,2]
[361160626,1747312290820,-619.27,0.00014727,2]
[361160627,1747312290830,-546.2,0.00014727,2]
[361160628,1747312290840,-400.0,0.00014727,2]
[361160629,1747312290850,-400.0,0.00014727,2]
[361160630,1747312290859,-400.87,0.00014727,2]
[361160631,1747312290873,-400.0,0.00014727,2]